bitfinex-derivatives/quotes_BTCF0:USTF0_20241008
["timestamp","ask_amount","ask_price","bid_price","bid_amount"]
[1728420417889,0.004,62376.0,62375.0,0.86431173]
[1728420418087,0.0037,62382.0,62379.0,0.080199]
[1728420418284,0.083888,62388.0,62386.0,0.08019]
[1728420418487,0.080188,62388.0,62386.0,0.24824783]
[1728420418693,0.080188,62388.0,62386.0,0.20019]
[1728420419201,0.080182,62392.0,62386.0,0.24823046]
[1728420419399,0.0037,62394.0,62386.0,0.20019]
[1728420419585,0.00640533,62387.0,62386.0,0.20019]
[1728420423793,0.00640533,62387.0,62386.0,0.22343244]
[1728420424388,0.0037,62394.0,62386.0,1.22412244]
[1728420424702,0.3276,62416.0,62386.0,1.22412244]
[1728420424703,0.080156,62414.0,62413.0,0.080154]
[1728420425002,0.12492847,62414.0,62413.0,0.16251178]
[1728420425199,0.16356766,62414.0,62413.0,0.16251178]
[1728420425501,0.11879519,62414.0,62413.0,0.16251178]
[1728420425688,0.15728143,62414.0,62413.0,0.16251178]
[1728420426008,0.11864224,62414.0,62413.0,0.16251178]
[1728420426309,0.080151,62416.0,62413.0,0.14378253]
[1728420426603,0.080151,62416.0,62415.0,0.200153]
[1728420427792,0.082151,62416.0,62415.0,0.081153]
[1728420427996,0.082151,62416.0,62415.0,0.201153]
[1728420428599,0.082151,62416.0,62415.0,0.202153]
[1728420432501,0.002,62416.0,62415.0,0.202153]
[1728420433799,0.080151,62417.0,62416.0,0.080151]
[1728420435306,0.080151,62417.0,62416.0,0.201151]
[1728420438320,0.16329525,62417.0,62416.0,0.01553563]
[1728420438997,0.16329525,62417.0,62416.0,0.09568663]
[1728420440505,0.080153,62415.0,62414.0,0.12]
[1728420440809,0.11702466,62415.0,62414.0,0.12]
[1728420441401,0.15980506,62415.0,62414.0,0.12]
[1728420441799,0.16080506,62415.0,62414.0,0.12]
[1728420445013,0.16080506,62415.0,62414.0,0.14265549]
[1728420445209,0.16080506,62415.0,62414.0,0.22280949]
[1728420445414,0.16084186,62415.0,62414.0,0.22280949]
[1728420446302,0.081153,62415.0,62414.0,0.22280949]
[1728420452716,0.001,62415.0,62414.0,0.58360949]
[1728420452923,0.080145,62421.0,62420.0,0.080146]
[1728420453113,0.080145,62421.0,62420.0,0.24812694]
[1728420453306,0.12339321,62421.0,62420.0,0.200146]
[1728420453607,0.16064253,62421.0,62420.0,0.200146]
[1728420454411,0.20997745,62421.0,62420.0,0.200146]
[1728420456216,0.20997745,62421.0,62420.0,0.560946]
[1728420456421,0.21017216,62421.0,62420.0,0.560946]
[1728420456622,0.3543676,62421.0,62420.0,0.560946]
[1728420458518,0.16064253,62421.0,62420.0,0.560946]
[1728420458719,0.21010703,62421.0,62420.0,0.560946]
[1728420459020,0.35430247,62421.0,62420.0,0.560946]
[1728420459436,0.16064253,62421.0,62420.0,0.560946]
[1728420459919,0.09298753,62421.0,62420.0,0.560946]
[1728420460522,0.080145,62421.0,62420.0,0.560946]
[1728420462522,0.080145,62421.0,62420.0,0.440946]
[1728420462927,0.080151,62418.0,62417.0,0.080148]
[1728420463615,0.080151,62418.0,62414.0,0.38493549]
[1728420463616,0.23,62418.0,62414.0,0.02413549]
[1728420463816,0.23,62418.0,62410.0,0.0037]
[1728420463817,0.560953,62415.0,62410.0,0.05168094]
[1728420464016,0.560953,62415.0,62406.0,0.06921424]
[1728420464017,0.200156,62412.0,62409.0,0.0112]
[1728420464217,0.200156,62412.0,62409.0,0.08016]
[1728420464218,0.080162,62410.0,62409.0,0.08016]
[1728420465832,0.080162,62410.0,62409.0,0.08116]
[1728420466221,0.080162,62410.0,62409.0,0.08216]
[1728420470520,0.080162,62410.0,62409.0,0.002]
[1728420472422,0.190162,62410.0,62409.0,0.002]
[1728420473131,0.550962,62410.0,62409.0,0.002]
[1728420475021,0.550962,62410.0,62409.0,0.20216]
[1728420475425,0.56824975,62410.0,62409.0,0.08016]
[1728420475626,0.56824975,62410.0,62409.0,0.20016]
[1728420475627,0.51903868,62410.0,62409.0,0.20016]
[1728420475830,0.56824968,62410.0,62409.0,0.20016]
[1728420476038,0.51903868,62410.0,62409.0,0.20016]
[1728420477335,0.15823868,62410.0,62409.0,0.20016]
[1728420480046,0.080162,62410.0,62409.0,0.20016]
[1728420480334,0.15670047,62410.0,62409.0,0.20016]
[1728420483533,0.080162,62410.0,62409.0,0.20016]
[1728420491143,0.440962,62410.0,62409.0,0.24819987]
[1728420491334,0.080162,62410.0,62409.0,0.20016]
[1728420491941,0.080162,62408.0,62407.0,0.14413724]
[1728420492148,0.080163,62407.0,62406.0,0.04805854]
[1728420492343,0.080164,62406.0,62405.0,0.14413924]
[1728420492544,0.180164,62406.0,62405.0,0.200165]
[1728420493647,0.180164,62406.0,62405.0,0.26431108]
[1728420494853,0.180164,62406.0,62405.0,0.14431108]
[1728420495059,0.181164,62406.0,62405.0,0.06414608]
[1728420495257,0.541964,62406.0,62405.0,0.06414608]
[1728420495439,0.080167,62404.0,62403.0,0.06414608]
[1728420495767,0.080169,62402.0,62401.0,0.06414608]
[1728420495942,0.08017,62401.0,62400.0,0.00240311]
[1728420496142,0.35207,62401.0,62400.0,0.00240311]
[1728420496746,0.080178,62398.0,62394.0,0.1312]
[1728420496943,0.080178,62397.0,62396.0,0.080177]
[1728420497152,0.170178,62397.0,62396.0,0.080177]
[1728420498449,0.24567611,62397.0,62396.0,0.084177]
[1728420498646,0.24567611,62397.0,62396.0,0.004]
[1728420499952,0.24567611,62397.0,62396.0,0.089177]
[1728420500157,0.24572678,62397.0,62396.0,0.089177]
[1728420500658,0.24572678,62397.0,62396.0,0.009]
[1728420502355,0.20513734,62397.0,62396.0,0.009]
[1728420504045,0.24568194,62397.0,62396.0,0.009]
[1728420504348,0.20513734,62397.0,62396.0,0.009]
[1728420504858,0.24568865,62397.0,62396.0,0.009]
[1728420505251,0.24566658,62397.0,62396.0,0.009]
[1728420505449,0.170178,62397.0,62396.0,0.13729094]
[1728420508156,0.170178,62397.0,62396.0,0.089177]
[1728420509064,0.170178,62397.0,62396.0,0.13729094]
[1728420509365,0.170178,62397.0,62396.0,0.089177]
[1728420509758,0.170178,62397.0,62396.0,0.009]
[1728420513556,0.20496058,62397.0,62396.0,0.009]
[1728420520566,0.170178,62397.0,62396.0,0.05711394]
[1728420521470,0.170178,62397.0,62396.0,0.009]
[1728420524358,0.170178,62397.0,62396.0,0.07314608]
[1728420525367,0.170178,62397.0,62396.0,0.009]
[1728420528570,0.29448881,62397.0,62396.0,0.009]
[1728420529378,0.2452626,62397.0,62396.0,0.009]
[1728420529671,0.2944888,62397.0,62396.0,0.009]
[1728420529878,0.6552888,62397.0,62396.0,0.009]
[1728420531075,0.79948424,62397.0,62396.0,0.009]
[1728420531278,0.6552888,62397.0,62396.0,0.009]
[1728420531475,0.65528879,62397.0,62396.0,0.009]
[1728420531774,0.6060626,62397.0,62396.0,0.089177]
[1728420532275,0.6060626,62397.0,62396.0,0.085177]
[1728420532471,0.6060626,62397.0,62396.0,0.091177]
[1728420533074,0.6060626,62397.0,62396.0,0.093177]
[1728420534874,0.2452626,62397.0,62396.0,0.093177]
[1728420535671,0.170178,62397.0,62396.0,0.20426316]
[1728420536277,0.170178,62397.0,62396.0,0.28445614]
[1728420536778,0.170178,62397.0,62396.0,0.20426316]
[1728420538275,0.170178,62397.0,62396.0,0.28451821]
[1728420538782,0.170178,62397.0,62396.0,0.20432214]
[1728420539092,0.170178,62397.0,62396.0,0.28452095]
[1728420539579,0.170178,62397.0,62396.0,0.20432214]
[1728420540787,0.170178,62397.0,62396.0,0.20427254]
[1728420541784,0.170178,62397.0,62396.0,0.28446842]
[1728420542787,0.170178,62397.0,62396.0,0.20427254]
[1728420543177,0.19023782,62397.0,62396.0,0.11809554]
[1728420543382,0.080182,62394.0,62393.0,0.080177]
[1728420543676,0.20083975,62394.0,62393.0,0.080177]
[1728420543884,0.22089957,62394.0,62393.0,0.080177]
[1728420544387,0.16440893,62394.0,62393.0,0.200177]
[1728420544684,0.09149579,62394.0,62393.0,0.568977]
[1728420544885,0.05222619,62394.0,62393.0,1.649777]
[1728420545186,0.083872,62401.0,62400.0,0.080172]
[1728420545383,0.11943439,62401.0,62400.0,0.4808]
[1728420546381,0.03926239,62401.0,62400.0,0.560972]
[1728420546878,0.03926239,62401.0,62400.0,0.563972]
[1728420547084,0.03926239,62401.0,62400.0,1.044732]
[1728420547386,0.0037,62408.0,62407.0,0.080163]
[1728420547598,0.08016,62410.0,62409.0,0.08016]
[1728420548387,0.3608,62411.0,62410.0,0.080159]
[1728420548777,0.3608,62411.0,62410.0,0.560839]
[1728420549088,0.3608,62411.0,62410.0,0.080159]
[1728420549386,0.3608,62411.0,62410.0,0.43048898]
[1728420549887,0.3608,62411.0,62410.0,0.080159]
[1728420550091,0.3658,62411.0,62410.0,0.561839]
[1728420550484,0.3658,62411.0,62410.0,1.08168]
[1728420550686,0.3658,62411.0,62410.0,0.561839]
[1728420550890,0.3718,62411.0,62410.0,0.082159]
[1728420551085,0.3718,62411.0,62410.0,0.10500525]
[1728420555895,0.011,62411.0,62410.0,0.10500525]
[1728420558902,0.080153,62415.0,62414.0,0.080154]
[1728420559109,0.13034402,62415.0,62414.0,0.200154]
[1728420559992,0.14134402,62415.0,62414.0,0.202154]
[1728420562300,0.011,62415.0,62414.0,0.202154]
[1728420562814,0.091153,62415.0,62414.0,0.202154]
[1728420562996,0.091153,62415.0,62414.0,0.25003805]
[1728420563397,0.011,62415.0,62414.0,0.202154]
[1728420566307,0.091153,62415.0,62414.0,0.202154]
[1728420568509,0.12338482,62415.0,62414.0,0.202154]
[1728420569409,0.12341377,62415.0,62414.0,0.202154]
[1728420573109,0.12341377,62415.0,62414.0,0.082154]
[1728420573313,0.29360479,62415.0,62414.0,0.002]
[1728420573502,0.21286065,62415.0,62414.0,0.002]
[1728420573806,0.14134402,62415.0,62414.0,0.082154]
[1728420574399,0.14134402,62415.0,62414.0,0.1300465]
[1728420575104,0.14134402,62415.0,62414.0,0.082154]
[1728420575306,0.14134402,62415.0,62414.0,0.130196]
[1728420575505,0.14134402,62415.0,62414.0,0.082154]
[1728420576907,0.05019102,62411.0,62408.0,0.08769447]
[1728420577218,0.080164,62406.0,62405.0,0.0075]
[1728420577512,0.080164,62407.0,62406.0,0.080162]
[1728420577815,0.080164,62407.0,62406.0,0.200162]
[1728420578002,0.13035502,62407.0,62406.0,0.200162]
[1728420578909,0.13135502,62407.0,62406.0,0.200162]
[1728420579910,0.13135502,62407.0,62404.0,0.02352123]
[1728420580105,0.13135502,62407.0,62403.0,0.200168]
[1728420580106,0.05019102,62405.0,62403.0,0.200168]
[1728420580311,0.49115802,62404.0,62403.0,0.200168]
[1728420580811,0.49115802,62404.0,62401.0,0.02939035]
[1728420581004,0.080172,62400.0,62399.0,0.08019447]
[1728420581208,0.13036402,62399.0,62398.0,0.16036847]
[1728420581407,0.05019102,62399.0,62398.0,0.1084495]
[1728420582413,0.13036402,62399.0,62398.0,0.1114495]
[1728420582922,0.49116402,62399.0,62398.0,0.1114495]
[1728420583421,0.49116402,62399.0,62398.0,0.1164495]
[1728420585434,0.49116402,62399.0,62398.0,0.0362755]
[1728420585435,0.61116402,62399.0,62398.0,0.0362755]
[1728420585730,0.71116402,62399.0,62398.0,0.008]
[1728420588624,0.7397985,62399.0,62398.0,0.008]
[1728420589730,0.59116402,62399.0,62398.0,0.008]
[1728420595927,0.59116402,62399.0,62398.0,0.05599694]
[1728420596334,0.59116402,62399.0,62398.0,0.008]
[1728420596727,0.59116402,62399.0,62398.0,0.05599694]
[1728420597033,0.59116402,62399.0,62398.0,0.008]
[1728420597831,0.59116402,62399.0,62398.0,0.05594749]
[1728420598134,0.59116402,62399.0,62398.0,0.008]
[1728420598541,0.59116402,62399.0,62398.0,0.05594749]
[1728420598927,0.59116402,62399.0,62398.0,0.208174]
[1728420600035,0.49116402,62399.0,62398.0,0.208174]
[1728420603838,0.49116402,62399.0,62398.0,0.008]
[1728420605050,0.49116402,62399.0,62398.0,0.088174]
[1728420610545,0.41099102,62399.0,62398.0,0.208174]
[1728420610853,0.083864,62406.0,62405.0,0.080165]
[1728420611048,0.080161,62409.0,62405.0,0.68382541]
[1728420611250,0.13035502,62406.0,62405.0,0.080165]
[1728420611442,0.13035502,62406.0,62405.0,0.32273899]
[1728420611643,0.49115502,62406.0,62405.0,0.32273899]
[1728420612044,0.49415502,62406.0,62405.0,0.32273899]
[1728420612245,0.49415502,62406.0,62405.0,0.19083025]
[1728420615449,0.49415502,62406.0,62405.0,0.19049096]
[1728420615747,0.59415502,62406.0,62405.0,0.19049096]
[1728420616460,0.59415502,62406.0,62405.0,0.2865956]
[1728420618259,0.59415502,62406.0,62405.0,0.19049096]
[1728420618869,0.62714849,62406.0,62405.0,0.080165]
[1728420620463,0.62715337,62406.0,62405.0,0.080165]
[1728420625460,0.62709898,62406.0,62405.0,0.080165]
[1728420625958,0.59415502,62406.0,62405.0,0.19051305]
[1728420630456,0.59415502,62406.0,62405.0,0.19057783]
[1728420633967,0.62710831,62406.0,62405.0,0.080165]
[1728420635472,0.66694431,62406.0,62400.0,0.0075]
[1728420635669,0.61116202,62401.0,62400.0,0.0075]
[1728420635864,0.080178,62395.0,62394.0,0.0112]
[1728420636171,0.080181,62393.0,62392.0,0.08258583]
[1728420636371,0.28298815,62393.0,62392.0,0.08258583]
[1728420636564,0.25037202,62393.0,62392.0,0.00240383]
[1728420636873,0.28287771,62393.0,62392.0,0.00240383]
[1728420637463,0.25037202,62393.0,62392.0,0.00240383]
[1728420638274,0.25037202,62393.0,62392.0,0.01340383]
[1728420638573,0.46283489,62393.0,62392.0,0.01340383]
[1728420638960,0.46283489,62393.0,62392.0,0.02240383]
[1728420639965,0.82363489,62393.0,62392.0,0.02240383]
[1728420640877,0.82363489,62393.0,62392.0,0.26537259]
[1728420640878,0.79117202,62393.0,62392.0,0.26537259]
[1728420641172,0.68685527,62393.0,62392.0,0.26537259]
[1728420641878,0.76703627,62393.0,62392.0,0.26537259]
[1728420645474,0.76703627,62393.0,62392.0,0.13324918]
[1728420645772,0.76703627,62393.0,62392.0,0.13245213]
[1728420646370,0.76703627,62393.0,62392.0,0.22844878]
[1728420646574,0.76703627,62393.0,62392.0,0.13245213]
[1728420646875,0.40623627,62393.0,62392.0,0.13245213]
[1728420647085,0.40623627,62393.0,62392.0,0.21263413]
[1728420647086,1.12783627,62393.0,62392.0,0.21263413]
[1728420647268,1.12783627,62393.0,62392.0,0.30861195]
[1728420647476,1.12783627,62393.0,62392.0,0.13245213]
[1728420648894,1.12783627,62393.0,62392.0,0.02240383]
[1728420649681,0.76703627,62393.0,62392.0,0.02240383]
[1728420649873,0.40623627,62393.0,62392.0,0.02240383]
[1728420650079,0.76703627,62393.0,62392.0,0.02240383]
[1728420651783,0.40623627,62393.0,62392.0,0.02240383]
[1728420651974,0.76703627,62393.0,62392.0,0.02240383]
[1728420653884,0.40623627,62393.0,62392.0,0.02240383]
[1728420654085,0.76703627,62393.0,62392.0,0.02240383]
[1728420655073,0.40623627,62393.0,62392.0,0.02240383]
[1728420655279,0.76703627,62393.0,62392.0,0.02240383]
[1728420655979,0.40623627,62393.0,62392.0,0.02240383]
[1728420656287,0.76703627,62393.0,62392.0,0.02240383]
[1728420656582,0.76703627,62393.0,62392.0,0.10258583]
[1728420656778,0.76703627,62393.0,62392.0,0.02240383]
[1728420657976,0.40623627,62393.0,62392.0,0.02240383]
[1728420658181,1.12783627,62393.0,62392.0,0.02240383]
[1728420658380,1.06783627,62393.0,62392.0,0.02240383]
[1728420660781,1.06783627,62393.0,62392.0,0.10258583]
[1728420661175,0.70703627,62393.0,62392.0,0.10258583]
[1728420663084,0.58703627,62393.0,62392.0,0.10258583]
[1728420664094,0.48272652,62393.0,62392.0,0.60776228]
[1728420664395,0.48272652,62393.0,62392.0,0.45574066]
[1728420664694,0.48272652,62393.0,62392.0,0.34361506]
[1728420665190,0.40254552,62393.0,62392.0,0.61486152]
[1728420665789,0.40254552,62393.0,62392.0,0.49486152]
[1728420665990,0.40254552,62393.0,62392.0,0.52806152]
[1728420666690,0.48272652,62393.0,62392.0,0.52806152]
[1728420667397,0.40254552,62393.0,62392.0,0.52806152]
[1728420668997,0.60272652,62393.0,62392.0,0.52806152]
[1728420670695,0.60272652,62393.0,62392.0,0.39632358]
[1728420670889,0.60272652,62393.0,62392.0,0.52659246]
[1728420671196,0.64655989,62393.0,62392.0,0.37534419]
[1728420675402,0.660981,62393.0,62392.0,0.37534419]
[1728420675789,0.660981,62393.0,62392.0,0.37454466]
[1728420677085,0.660981,62393.0,62392.0,0.34134466]
[1728420678006,0.660981,62393.0,62392.0,0.26116266]
[1728420678193,0.660981,62393.0,62392.0,0.13132856]
[1728420678911,0.660981,62393.0,62392.0,0.02240383]
[1728420681401,0.6956113,62393.0,62392.0,0.02240383]
[1728420681794,0.6956113,62393.0,62392.0,0.10258583]
[1728420681994,0.660981,62393.0,62392.0,0.10258583]
[1728420682498,0.69561621,62393.0,62392.0,0.10258583]
[1728420682703,0.660981,62393.0,62392.0,0.10258583]
[1728420685993,0.660981,62393.0,62392.0,0.34156765]
[1728420686699,0.660981,62393.0,62392.0,0.21161229]
[1728420688005,0.660981,62393.0,62392.0,0.30780381]
[1728420688403,0.660981,62393.0,62392.0,0.21161229]
[1728420690409,0.660981,62393.0,62392.0,0.30780381]
[1728420690999,0.660981,62393.0,62392.0,0.21161229]
[1728420691606,0.660981,62393.0,62392.0,0.30780381]
[1728420692906,0.660981,62393.0,62392.0,0.21161229]
[1728420694012,0.660981,62393.0,62392.0,0.10258583]
[1728420699310,0.08387,62402.0,62392.0,0.14240383]
[1728420699508,0.08387,62402.0,62401.0,0.080171]
[1728420699509,0.10017,62402.0,62401.0,0.080171]
[1728420699710,0.10017,62402.0,62395.0,0.0593006]
[1728420699906,0.080177,62397.0,62396.0,0.080177]
[1728420700216,0.560977,62397.0,62396.0,0.12827442]
[1728420700417,0.560977,62397.0,62396.0,0.080177]
[1728420701213,0.4808,62397.0,62396.0,0.31869665]
[1728420701428,0.560976,62397.0,62396.0,0.31869665]
[1728420701914,0.560976,62397.0,62396.0,0.32369665]
[1728420702313,0.560976,62397.0,62396.0,0.33069665]
[1728420703003,0.3608,62397.0,62396.0,0.33069665]
[1728420703919,0.3608,62397.0,62396.0,0.36139665]
[1728420705006,0.440976,62397.0,62396.0,0.36139665]
[1728420705820,0.45382,62414.0,62399.0,0.080173]
[1728420706015,0.40776,62409.0,62408.0,0.080162]
[1728420706324,0.40776,62409.0,62408.0,0.30897761]
[1728420706510,0.3276,62409.0,62408.0,0.30897761]
[1728420706704,0.3276,62409.0,62408.0,0.40509589]
[1728420707314,0.3276,62409.0,62408.0,0.30897761]
[1728420707911,0.40776,62409.0,62408.0,0.30897761]
[1728420708114,0.40976,62409.0,62408.0,0.30897761]
[1728420708711,0.08216,62409.0,62408.0,0.30897761]
[1728420709118,0.08216,62409.0,62408.0,0.200162]
[1728420709304,0.08316,62409.0,62408.0,0.200162]
[1728420710920,0.08316,62409.0,62408.0,0.22937816]
[1728420713520,0.08316,62409.0,62408.0,0.10937816]
[1728420715813,0.00092,62412.0,62408.0,1.31009816]
[1728420716019,0.3645,62417.0,62412.0,0.080156]
[1728420716208,0.3645,62417.0,62416.0,0.24813477]
[1728420716209,0.3608,62417.0,62416.0,0.24813477]
[1728420716409,0.44095,62417.0,62416.0,0.24813477]
[1728420716715,0.3608,62417.0,62416.0,0.12813477]
[1728420716915,0.44095,62417.0,62416.0,0.12813477]
[1728420717616,0.44295,62417.0,62416.0,0.12913477]
[1728420718210,0.3628,62417.0,62416.0,0.081151]
[1728420719130,0.3628,62417.0,62416.0,0.082151]
[1728420719418,0.3628,62417.0,62416.0,0.11043738]
[1728420722328,0.0037,62425.0,62424.0,0.080141]
[1728420722521,0.08014,62425.0,62424.0,0.080141]
[1728420723719,0.08014,62425.0,62424.0,0.081141]
[1728420724121,0.08014,62425.0,62424.0,0.04588253]
[1728420724122,0.1167498,62425.0,62424.0,0.04588253]
[1728420724326,0.5975498,62425.0,62424.0,0.07493827]
[1728420724515,0.7075498,62425.0,62424.0,0.002]
[1728420724717,0.080147,62419.0,62418.0,0.0112]
[1728420724919,0.59726477,62419.0,62412.0,0.1312]
[1728420725224,0.59726477,62419.0,62414.0,0.080152]
[1728420725225,0.080154,62415.0,62414.0,0.080152]
[1728420726023,0.11601586,62415.0,62414.0,0.080152]
[1728420728625,0.11601586,62415.0,62412.0,0.0295807]
[1728420728827,0.11601586,62415.0,62409.0,0.0112]
[1728420728828,0.080159,62410.0,62409.0,0.0112]
[1728420729027,0.080159,62410.0,62408.0,0.08016]
[1728420729028,0.08016,62409.0,62408.0,0.08016]
[1728420729330,0.11602186,62409.0,62408.0,0.08016]
[1728420729527,0.15738927,62409.0,62408.0,0.08016]
[1728420730221,0.11602186,62409.0,62408.0,0.08016]
[1728420730630,0.11578989,62409.0,62408.0,0.08616]
[1728420730826,0.11578989,62409.0,62408.0,0.09016]
[1728420731230,0.08016,62409.0,62408.0,0.19796363]
[1728420732524,0.08016,62409.0,62408.0,0.19396363]
[1728420733133,0.08016,62409.0,62408.0,0.18796363]
[1728420735335,0.08016,62409.0,62408.0,0.28408191]
[1728420735634,0.08016,62409.0,62408.0,0.28422806]
[1728420736331,0.08016,62409.0,62408.0,0.18810978]
[1728420736835,0.19016,62409.0,62408.0,0.10794978]
[1728420738345,0.080165,62405.0,62403.0,0.0075]
[1728420738546,0.080168,62403.0,62398.0,0.0800437]
[1728420738835,0.080181,62393.0,62392.0,0.09611828]
[1728420739034,0.560981,62393.0,62392.0,0.09611828]
[1728420739244,0.080182,62392.0,62391.0,0.080183]
[1728420739424,0.310182,62392.0,62391.0,0.080183]
[1728420739632,0.080183,62391.0,62390.0,0.09611828]
[1728420739938,0.080183,62391.0,62383.0,0.0825972]
[1728420739939,0.080192,62384.0,62383.0,0.0024042]
[1728420740139,0.310192,62384.0,62383.0,0.0024042]
[1728420740542,0.190192,62384.0,62383.0,0.0024042]
[1728420740947,0.190192,62384.0,62379.0,0.080198]
[1728420741242,0.080197,62380.0,62379.0,0.080198]
[1728420742544,0.0802,62378.0,62377.0,0.10873047]
[1728420742837,0.0802,62378.0,62377.0,0.080201]
[1728420743634,0.0802,62378.0,62377.0,0.094201]
[1728420744537,0.0802,62378.0,62377.0,0.108201]
[1728420749837,0.1902,62378.0,62377.0,0.108201]
[1728420754054,0.11,62378.0,62377.0,0.108201]
[1728420754261,0.11,62378.0,62377.0,0.21419331]
[1728420754462,0.01204,62385.0,62377.0,0.13399231]
[1728420754668,0.091388,62388.0,62384.0,0.18]
[1728420754958,0.08019,62386.0,62385.0,0.0614]
[1728420755156,0.20019,62386.0,62385.0,0.0614]
[1728420756449,0.08019,62386.0,62385.0,0.155591]
[1728420756649,0.08019,62386.0,62385.0,0.26059182]
[1728420757051,0.08019,62386.0,62385.0,0.155591]
[1728420757253,0.18019,62386.0,62385.0,0.26069252]
[1728420759065,0.18019,62386.0,62385.0,0.27469252]
[1728420759459,0.18019,62386.0,62385.0,0.2747641]
[1728420759858,0.18019,62386.0,62385.0,0.30437229]
[1728420760362,0.18019,62386.0,62385.0,0.42437229]
[1728420762767,0.18019,62386.0,62385.0,0.30437229]
[1728420764564,0.18019,62386.0,62385.0,0.1945731]
[1728420764773,0.18019,62386.0,62385.0,0.1331731]
[1728420764774,0.54099,62386.0,62385.0,0.1331731]
[1728420765154,0.54099,62386.0,62385.0,0.028]
[1728420765363,0.54099,62386.0,62385.0,0.13374156]
[1728420768774,1.62187,62386.0,62384.0,0.0957413]
[1728420769072,0.0802,62378.0,62377.0,0.05179298]
[1728420769279,0.080204,62375.0,62372.0,0.04809298]
[1728420769569,0.080208,62372.0,62371.0,0.080209]
[1728420769773,0.310208,62372.0,62371.0,0.080209]
[1728420770370,0.190208,62372.0,62371.0,0.080209]
[1728420771267,0.080213,62369.0,62368.0,0.080212]
[1728420771466,0.190213,62369.0,62368.0,0.080212]
[1728420772477,0.080214,62367.0,62366.0,0.12830798]
[1728420772673,0.441014,62367.0,62366.0,0.080215]
[1728420774573,0.442014,62367.0,62366.0,0.094215]
[1728420775175,0.442014,62367.0,62366.0,0.106215]
[1728420775176,0.443014,62367.0,62366.0,0.106215]
[1728420776072,0.25838636,62367.0,62366.0,0.37779127]
[1728420776970,0.44860036,62367.0,62366.0,0.37779127]
[1728420777278,0.192214,62367.0,62366.0,0.37779127]
[1728420779276,0.192214,62367.0,62366.0,0.48973783]
[1728420779478,0.192214,62367.0,62366.0,0.48973608]
[1728420780270,0.192214,62367.0,62366.0,0.48973034]
[1728420780474,0.192214,62367.0,62366.0,0.23188385]
[1728420783974,0.192214,62367.0,62366.0,0.3358648]
[1728420784175,0.192214,62367.0,62366.0,0.106215]
[1728420786076,0.112,62367.0,62366.0,0.106215]
[1728420786274,0.002,62367.0,62366.0,0.106215]
[1728420786578,0.002,62367.0,62366.0,0.21002214]
[1728420786775,0.0149,62374.0,62373.0,0.080206]
[1728420786978,0.090205,62374.0,62373.0,0.621006]
[1728420787171,0.01,62374.0,62373.0,0.83513552]
[1728420787377,0.080199,62379.0,62377.0,0.080201]
[1728420787695,0.080203,62377.0,62376.0,0.080201]
[1728420787872,0.190203,62377.0,62376.0,0.080201]
[1728420789280,0.191203,62377.0,62376.0,0.091201]
[1728420790575,0.081203,62377.0,62376.0,0.091201]
[1728420790778,0.082203,62377.0,62376.0,0.104201]
[1728420791188,0.002,62377.0,62376.0,0.33142416]
[1728420791891,0.082202,62377.0,62376.0,0.33142416]
[1728420792081,0.082202,62377.0,62376.0,0.35969141]
[1728420792476,0.082202,62377.0,62376.0,0.47969141]
[1728420793277,0.002,62377.0,62376.0,0.47969141]
[1728420795993,0.03404534,62379.0,62376.0,0.39949041]
[1728420796293,0.03404534,62379.0,62378.0,0.0802]
[1728420796486,0.03404534,62379.0,62378.0,0.30742316]
[1728420797595,0.03504534,62379.0,62378.0,0.30742316]
[1728420798499,0.03604534,62379.0,62378.0,0.30742316]
[1728420798787,0.03604534,62379.0,62378.0,0.31842316]
[1728420798991,0.03504534,62379.0,62378.0,0.31842316]
[1728420799183,0.03604534,62379.0,62378.0,0.1042]
[1728420805999,0.002,62379.0,62378.0,0.1042]
[1728420806186,0.0149,62384.0,62380.0,0.080197]
[1728420806187,0.080197,62381.0,62380.0,0.080197]
[1728420806386,0.080197,62381.0,62380.0,0.78659071]
[1728420807189,0.080197,62381.0,62380.0,0.42579071]
[1728420807391,0.081197,62381.0,62380.0,0.43479071]
[1728420807992,0.082197,62381.0,62380.0,0.44579071]
[1728420814202,0.082197,62381.0,62380.0,0.220197]
[1728420815700,0.002,62381.0,62380.0,0.220197]
[1728420816003,0.002,62381.0,62380.0,0.26825675]
[1728420817200,0.002,62381.0,62380.0,0.220197]
[1728420817506,0.002,62381.0,62380.0,0.26828727]
[1728420819006,0.002,62381.0,62380.0,0.220197]
[1728420821205,0.080192,62385.0,62384.0,0.080192]
[1728420821508,0.080192,62385.0,62384.0,0.42542296]
[1728420822200,0.080192,62385.0,62384.0,0.30542296]
[1728420822405,0.200192,62385.0,62384.0,0.22523096]
[1728420822599,0.200192,62385.0,62384.0,0.23123096]
[1728420822905,0.081192,62385.0,62384.0,0.23123096]
[1728420823094,0.441992,62385.0,62384.0,0.23623096]
[1728420823298,0.081192,62385.0,62384.0,0.4366403]
[1728420824603,0.081192,62385.0,62384.0,0.211192]
[1728420824805,0.081192,62385.0,62384.0,0.43651495]
[1728420825908,0.081192,62385.0,62384.0,0.46471732]
[1728420829209,0.081192,62385.0,62384.0,0.46475246]
[1728420830014,0.081192,62385.0,62384.0,0.46472897]
[1728420831314,0.081192,62385.0,62384.0,0.46476833]
[1728420834910,0.081192,62385.0,62384.0,0.46481359]
[1728420836320,0.081192,62385.0,62384.0,0.23939437]
[1728420844313,0.081192,62385.0,62384.0,0.46493574]
[1728420844822,0.081192,62385.0,62384.0,0.23939437]
[1728420845021,0.081192,62385.0,62384.0,0.46495131]
[1728420846014,0.081192,62385.0,62384.0,0.71958158]
[1728420848118,0.081192,62385.0,62384.0,0.46495131]
[1728420850017,0.081192,62385.0,62384.0,0.46500686]
[1728420854514,0.001,62385.0,62384.0,0.46500686]
[1728420855022,0.001,62385.0,62384.0,0.74904636]
[1728420855234,0.112474,62399.0,62391.0,0.080183]
[1728420855529,0.00240493,62392.0,62391.0,0.55971557]
[1728420855730,0.00240493,62392.0,62391.0,0.44742873]
[1728420856115,0.00240493,62392.0,62391.0,0.55971678]
[1728420856325,0.08258693,62392.0,62391.0,0.30538119]
[1728420856926,0.00440493,62392.0,62391.0,0.30538119]